[Event "Paul Keres Memorial-U20 Girls 2020"]
[Site "Parnu"]
[Date "2020.08.01"]
[Round "7.4"]
[White "Nilssen, Ellen Fredericia"]
[Black "Kiolbasa, Oliwia"]
[Result "1/2-1/2"]
[ECO "A36"]
[WhiteElo "2071"]
[BlackElo "2160"]
[Annotator "ChessBase"]
[PlyCount "29"]
[EventDate "2020.07.27"]
[EventType "tourn"]
[EventCountry "EST"]
[TimeControl "5400+30"]

1. c4 {[%emt 0:00:01]} Nf6 {[%emt 0:01:57]} 2. Nc3 {[%emt 0:00:22]} c5 {[%emt 0:03:23]} 3. g3 {[%emt 0:00:08]} Nc6 {[%emt 0:02:57]} 4. Bg2 {[%emt 0:00:10]} e6 {[%emt 0:00:46]} 5. e4 {[%emt 0:05:22]} Be7 {[%emt 0:03:19]} 6. Nge2 {[%emt 0:00:20]} O-O {[%emt 0:01:16]} 7. O-O {[%emt 0:01:58]} d6 {[%emt 0:00:53]} 8. d3 {[%emt 0:02:15]} a6 {[%emt 0:02:10]} 9. h3 {[%emt 0:05:17]} Rb8 {[%emt 0:02:24]} 10. a4 {[%emt 0:00:10]} b6 {[%emt 0:15:43]} 11. f4 {[%emt 0:03:34]} Bb7 {[%emt 0:04:47]} 12. g4 {[%emt 0:05:50]} Ne8 {[%emt 0:00:58]} 13. Be3 {[%emt 0:10:31]} Nc7 {[%emt 0:13:23]} 14. Qd2 {[%emt 0:03:37]} Na5 {[%emt 0:10:50]} 15. Rad1 {[%emt 0:12:51]} 1/2-1/2

[Event "Paul Keres Memorial-U20 Girls 2020"]
[Site "Parnu"]
[Date "2020.08.01"]
[Round "7.5"]
[White "Limanovska, Elizabete"]
[Black "Muetsch, Annmarie"]
[Result "1-0"]
[ECO "B07"]
[WhiteElo "2179"]
[BlackElo "2219"]
[Annotator "ChessBase"]
[PlyCount "121"]
[EventDate "2020.07.27"]
[EventType "tourn"]
[EventCountry "EST"]
[TimeControl "5400+30"]

1. e4 {[%emt 0:00:00]} d6 {[%emt 0:00:37]} 2. d4 {[%emt 0:00:00]} Nf6 {[%emt 0:00:14]} 3. Bd3 {[%emt 0:03:13]} e5 {[%emt 0:01:49]} 4. d5 {[%emt 0:04:49]} g6 {[%emt 0:01:39]} 5. c4 {[%emt 0:04:39]} Nbd7 {[%emt 0:01:48]} 6. Nc3 {[%emt 0:01:15]} a5 {[%emt 0:01:33]} 7. Nf3 {[%emt 0:01:30]} Bg7 {[%emt 0:01:08]} 8. h3 {[%emt 0:03:24]} Nh5 {[%emt 0:05:17]} 9. Ne2 {[%emt 0:12:34]} Nc5 {[%emt 0:03:13]} 10. Bc2 {[%emt 0:03:24]} O-O {[%emt 0:02:35]} 11. Bd2 {[%emt 0:08:00]} f5 {[%emt 0:10:29]} 12. exf5 {[%emt 0:00:05]} Bxf5 {[%emt 0:02:32]} 13. Bxf5 {[%emt 0:07:12]} Rxf5 {[%emt 0:00:13]} 14. O-O {[%emt 0:01:58]} Rxf3 {[%emt 0:04:07]} 15. gxf3 {[%emt 0:00:25]} Qh4 {[%emt 0:01:19]} 16. Kh2 {[%emt 0:05:10]} Rf8 {[%emt 0:03:11]} 17. Ng3 {[%emt 0:02:44]} Nf4 {[%emt 0:02:41]} 18. Bxf4 {[%emt 0:00:29]} exf4 {[%emt 0:00:41]} 19. Ne2 {[%emt 0:01:57]} Rf5 {[%emt 0:01:41]} 20. Qd2 {[%emt 0:03:03]} Nd7 {[%emt 0:04:30]} 21. Qxa5 {[%emt 0:03:44]} Rh5 {[%emt 0:01:54]} 22. Ng1 {[%emt 0:00:11]} Ne5 {[%emt 0:00:54]} 23. Qa3 {[%emt 0:00:47]} Bf8 {[%emt 0:07:10]} 24. Rac1 {[%emt 0:03:55]} Qd8 {[%emt 0:03:35]} 25. b4 {[%emt 0:01:02]} Nf7 {[%emt 0:01:26]} 26. Qd3 {[%emt 0:02:08]} Ng5 {[%emt 0:04:29]} 27. Rfd1 {[%emt 0:02:41]} Qd7 {[%emt 0:02:15]} 28. Qf1 {[%emt 0:00:04]} b6 {[%emt 0:00:52]} 29. Rd3 {[%emt 0:01:50]} Rh4 {[%emt 0:01:46]} 30. Ra3 {[%emt 0:01:42]} Qc8 {[%emt 0:00:44]} 31. Rcc3 {[%emt 0:02:18]} Bg7 {[%emt 0:01:59]} 32. Rd3 {[%emt 0:01:22]} Be5 {[%emt 0:02:01]} 33. Ra4 {[%emt 0:02:55]} Kg7 {[%emt 0:00:33]} 34. Rda3 {[%emt 0:00:17]} Kh6 {[%emt 0:02:57]} 35. Ra8 {[%emt 0:02:24]} Qf5 {[%emt 0:01:21]} 36. Rd3 {[%emt 0:01:23]} Qd7 {[%emt 0:03:25]} 37. b5 {[%emt 0:04:04]} Qg7 {[%emt 0:01:24]} 38. a4 {[%emt 0:01:19]} Bd4 {[%emt 0:00:58]} 39. Re8 {[%emt 0:01:18]} Qd7 {[%emt 0:01:51]} 40. Re2 {[%emt 0:01:39]} Bc5 {[%emt 0:01:03]} 41. Rb3 {[%emt 0:00:21]} Qf5 {[%emt 0:00:33]} 42. Ra2 {[%emt 0:02:58]} Rh5 {[%emt 0:01:49]} 43. Rb1 {[%emt 0:00:44]} Kg7 {[%emt 0:03:50]} 44. Re1 {[%emt 0:00:08]} Kh6 {[%emt 0:00:51]} 45. Re7 {[%emt 0:00:42]} Qc8 {[%emt 0:02:53]} 46. Rae2 {[%emt 0:01:38]} Bd4 {[%emt 0:00:50]} 47. Re8 {[%emt 0:00:40]} Qf5 {[%emt 0:00:46]} 48. R2e7 {[%emt 0:00:06]} Qc2 {[%emt 0:05:58]} 49. Qe2 {[%emt 0:00:05]} Qxa4 {[%emt 0:00:53]} 50. Rxc7 {[%emt 0:01:38]} Rh4 {[%emt 0:01:13]} 51. Kg2 {[%emt 0:00:52]} Qb3 {[%emt 0:00:50]} 52. Qe7 {[%emt 0:01:00]} Qc2 {[%emt 0:00:47]} 53. Qf8+ {[%emt 0:00:37]} Kh5 {[%emt 0:00:05]} 54. Re2 {[%emt 0:00:04]} Qd3 {[%emt 0:00:39]} 55. Qxd6 {[%emt 0:00:34]} h6 {[%emt 0:00:48]} 56. Rc6 {[%emt 0:01:10]} Qb1 {[%emt 0:00:43]} 57. Qe7 {[%emt 0:01:22]} Nxh3 {[%emt 0:00:34]} 58. Nxh3 {[%emt 0:00:45]} Rxh3 {[%emt 0:00:07]} 59. Re1 {[%emt 0:00:02]} Qc2 {[%emt 0:00:56]} 60. Kxh3 {[%emt 0:00:59]} Qxf2 {[%emt 0:00:19]} 61. Re5+ {[%emt 0:00:15]} 1-0

[Event "Paul Keres Memorial-U20 Girls 2020"]
[Site "Parnu"]
[Date "2020.08.01"]
[Round "8.1"]
[White "Olde, Margareth"]
[Black "Muetsch, Annmarie"]
[Result "1/2-1/2"]
[ECO "E90"]
[WhiteElo "2201"]
[BlackElo "2219"]
[Annotator "ChessBase"]
[PlyCount "88"]
[EventDate "2020.07.27"]
[EventType "tourn"]
[EventCountry "EST"]
[TimeControl "5400+30"]

1. d4 {[%emt 0:00:00]} Nf6 {[%emt 0:00:00]} 2. c4 {[%emt 0:00:00]} g6 {[%emt 0:00:00]} 3. Nc3 {[%emt 0:00:00]} Bg7 {[%emt 0:00:00]} 4. e4 {[%emt 0:00:00]} d6 {[%emt 0:00:00]} 5. h3 {[%emt 0:00:00]} O-O {[%emt 0:00:02]} 6. Be3 {[%emt 0:00:00]} e5 {[%emt 0:00:10]} 7. d5 {[%emt 0:00:06]} a5 {[%emt 0:00:07]} 8. Nf3 {[%emt 0:00:19]} Na6 {[%emt 0:00:17]} 9. g4 {[%emt 0:00:10]} Nc5 {[%emt 0:00:11]} 10. Nd2 {[%emt 0:00:08]} Bd7 {[%emt 0:00:16]} 11. Qc2 {[%emt 0:04:49]} a4 {[%emt 0:01:42]} 12. a3 {[%emt 0:00:32]} c6 {[%emt 0:06:53]} 13. O-O-O {[%emt 0:01:22]} Qa5 {[%emt 0:03:15]} 14. Bxc5 {[%emt 0:04:17]} Qxc5 {[%emt 0:02:15]} 15. Nxa4 {[%emt 0:10:41]} Qxf2 {[%emt 0:08:40]} 16. dxc6 {[%emt 0:04:34]} Bxc6 {[%emt 0:01:17]} 17. Nc3 {[%emt 0:00:14]} Rfc8 {[%emt 0:06:49]} 18. Bd3 {[%emt 0:02:17]} Qa7 {[%emt 0:04:16]} 19. Nb3 {[%emt 0:07:52]} Bh6+ {[%emt 0:06:16]} 20. Kb1 {[%emt 0:00:11]} Ba4 {[%emt 0:07:49]} 21. Nxa4 {[%emt 0:05:28]} Qxa4 {[%emt 0:00:05]} 22. Nc1 {[%emt 0:03:27]} Qxc2+ {[%emt 0:04:01]} 23. Bxc2 {[%emt 0:09:34]} Bxc1 {[%emt 0:13:41]} 24. Rxc1 {[%emt 0:02:36]} Rxc4 {[%emt 0:00:15]} 25. Bb3 {[%emt 0:00:30]} Rc5 {[%emt 0:06:19]} 26. Rcd1 {[%emt 0:07:01]} Nxe4 {[%emt 0:10:14]} 27. Rhe1 {[%emt 0:01:52]} Ng5 {[%emt 0:02:05]} 28. Rxd6 {[%emt 0:01:39]} Nxh3 {[%emt 0:02:52]} 29. Rd7 {[%emt 0:01:48]} Ng5 {[%emt 0:01:19]} 30. Rf1 {[%emt 0:03:51]} Rf8 {[%emt 0:00:43]} 31. Rxb7 {[%emt 0:01:00]} e4 {[%emt 0:00:53]} 32. Re7 {[%emt 0:01:06]} Rcc8 {[%emt 0:00:33]} 33. Bd5 {[%emt 0:06:34]} Kg7 {[%emt 0:02:13]} 34. Bxe4 {[%emt 0:01:56]} Rc4 {[%emt 0:00:12]} 35. Bd5 {[%emt 0:01:59]} Rxg4 {[%emt 0:00:10]} 36. b4 {[%emt 0:00:33]} Rg3 {[%emt 0:05:28]} 37. Kb2 {[%emt 0:02:27]} Rd8 {[%emt 0:01:21]} 38. Bxf7 {[%emt 0:01:47]} Rd2+ {[%emt 0:01:04]} 39. Kc1 {[%emt 0:00:19]} Rh2 {[%emt 0:00:06]} 40. Bd5+ {[%emt 0:06:06]} Kh6 {[%emt 0:00:04]} 41. b5 {[%emt 0:00:53]} Rxa3 {[%emt 0:00:54]} 42. Kb1 {[%emt 0:00:02]} Rd3 {[%emt 0:02:46]} 43. Bc6 {[%emt 0:07:45]} Rb3+ {[%emt 0:00:35]} 44. Ka1 {[%emt 0:00:27]} Ra3+ {[%emt 0:00:17]} 1/2-1/2

[Event "Paul Keres Memorial-U20 Girls 2020"]
[Site "Parnu"]
[Date "2020.08.01"]
[Round "8.2"]
[White "Kiolbasa, Oliwia"]
[Black "Limanovska, Elizabete"]
[Result "1/2-1/2"]
[ECO "C84"]
[WhiteElo "2160"]
[BlackElo "2179"]
[Annotator "ChessBase"]
[PlyCount "65"]
[EventDate "2020.07.27"]
[EventType "tourn"]
[EventCountry "EST"]
[TimeControl "5400+30"]

1. e4 {[%emt 0:00:00]} e5 {[%emt 0:00:00]} 2. Nf3 {[%emt 0:00:00]} Nc6 {[%emt 0:00:00]} 3. Bb5 {[%emt 0:00:00]} a6 {[%emt 0:00:00]} 4. Ba4 {[%emt 0:00:08]} Nf6 {[%emt 0:00:00]} 5. O-O {[%emt 0:00:17]} Be7 {[%emt 0:00:05]} 6. d3 {[%emt 0:00:24]} b5 {[%emt 0:00:34]} 7. Bb3 {[%emt 0:00:10]} d6 {[%emt 0:00:09]} 8. a3 {[%emt 0:00:09]} Bg4 {[%emt 0:06:16]} 9. Be3 {[%emt 0:08:07]} O-O {[%emt 0:09:30]} 10. Nc3 {[%emt 0:00:19]} Nd4 {[%emt 0:05:18]} 11. Bxd4 {[%emt 0:00:15]} exd4 {[%emt 0:00:03]} 12. Nd5 {[%emt 0:00:11]} c5 {[%emt 0:00:56]} 13. h3 {[%emt 0:05:42]} Be6 {[%emt 0:01:43]} 14. Nd2 {[%emt 0:29:19]} Nxd5 {[%emt 0:03:42]} 15. Bxd5 {[%emt 0:01:04]} Bxd5 {[%emt 0:00:04]} 16. exd5 {[%emt 0:00:11]} Re8 {[%emt 0:04:53]} 17. Re1 {[%emt 0:10:54]} Bf8 {[%emt 0:02:12]} 18. Qf3 {[%emt 0:00:45]} Ra7 {[%emt 0:05:01]} 19. Re4 {[%emt 0:06:09]} Re5 {[%emt 0:08:22]} 20. a4 {[%emt 0:04:00]} Rae7 {[%emt 0:17:52]} 21. axb5 {[%emt 0:07:10]} axb5 {[%emt 0:00:03]} 22. Ra6 {[%emt 0:00:34]} f5 {[%emt 0:03:50]} 23. Rxe5 {[%emt 0:04:33]} Rxe5 {[%emt 0:02:02]} 24. b4 {[%emt 0:00:06]} Qe8 {[%emt 0:03:13]} 25. bxc5 {[%emt 0:06:58]} dxc5 {[%emt 0:03:30]} 26. d6 {[%emt 0:00:31]} Qe6 {[%emt 0:09:12]} 27. Qc6 {[%emt 0:02:25]} Rd5 {[%emt 0:04:06]} 28. Qxb5 {[%emt 0:02:34]} Rxd6 {[%emt 0:01:34]} 29. Rxd6 {[%emt 0:04:25]} Qe1+ {[%emt 0:04:08]} 30. Nf1 {[%emt 0:00:17]} Bxd6 {[%emt 0:00:02]} 31. Qc4+ {[%emt 0:00:53]} Kf8 {[%emt 0:00:03]} 32. Qd5 {[%emt 0:00:45]} Qe5 {[%emt 0:00:07]} 33. Qxe5 {[%emt 0:01:29]} 1/2-1/2

[Event "Paul Keres Memorial-U20 Girls 2020"]
[Site "Parnu"]
[Date "2020.08.01"]
[Round "8.3"]
[White "Nazarova, Anastasia"]
[Black "Nilssen, Ellen Fredericia"]
[Result "1-0"]
[ECO "C09"]
[WhiteElo "2171"]
[BlackElo "2071"]
[Annotator "ChessBase"]
[PlyCount "107"]
[EventDate "2020.07.27"]
[EventType "tourn"]
[EventCountry "EST"]
[TimeControl "5400+30"]

1. e4 {[%emt 0:00:00]} e6 {[%emt 0:00:00]} 2. d4 {[%emt 0:00:00]} d5 {[%emt 0:00:00]} 3. Nd2 {[%emt 0:00:00]} c5 {[%emt 0:00:00]} 4. exd5 {[%emt 0:00:00]} exd5 {[%emt 0:00:01]} 5. Ngf3 {[%emt 0:00:00]} Nc6 {[%emt 0:00:16]} 6. Bb5 {[%emt 0:00:10]} Qe7+ {[%emt 0:00:07]} 7. Be2 {[%emt 0:00:15]} Qc7 {[%emt 0:00:10]} 8. O-O {[%emt 0:00:18]} Nf6 {[%emt 0:00:07]} 9. Re1 {[%emt 0:00:14]} cxd4 {[%emt 0:00:12]} 10. h3 {[%emt 0:03:15]} Be7 {[%emt 0:01:12]} 11. Nb3 {[%emt 0:02:17]} O-O {[%emt 0:00:11]} 12. Nbxd4 {[%emt 0:00:15]} Re8 {[%emt 0:00:13]} 13. c3 {[%emt 0:01:53]} a6 {[%emt 0:00:08]} 14. Be3 {[%emt 0:00:56]} Bd7 {[%emt 0:04:17]} 15. Qc2 {[%emt 0:02:05]} Ne4 {[%emt 0:07:17]} 16. Rad1 {[%emt 0:07:16]} Bd6 {[%emt 0:04:03]} 17. Qc1 {[%emt 0:05:28]} Rad8 {[%emt 0:04:29]} 18. Bd3 {[%emt 0:02:21]} Nxd4 19. Nxd4 Be5 {[%emt 0:07:11]} 20. Bc2 {[%emt 0:08:49]} Bc6 {[%emt 0:12:54]} 21. Nf3 {[%emt 0:08:11]} Bd6 {[%emt 0:02:22]} 22. Bb3 {[%emt 0:01:57]} Re6 {[%emt 0:02:04]} 23. Ng5 {[%emt 0:12:28]} Rg6 {[%emt 0:04:09]} 24. Nxe4 {[%emt 0:08:53]} dxe4 {[%emt 0:00:07]} 25. Kh1 {[%emt 0:00:01]} Qe7 {[%emt 0:04:45]} 26. Rd4 {[%emt 0:13:50]} Re8 {[%emt 0:01:06]} 27. Bf4 {[%emt 0:06:19]} Bc5 {[%emt 0:01:07]} 28. Rd2 {[%emt 0:02:13]} Qf6 {[%emt 0:14:20]} 29. Be3 {[%emt 0:06:23]} Bd6 {[%emt 0:00:08]} 30. Qd1 {[%emt 0:00:45]} Bd7 {[%emt 0:05:52]} 31. Rd5 {[%emt 0:03:03]} Bc6 {[%emt 0:05:01]} 32. Rd2 {[%emt 0:00:49]} Bc7 {[%emt 0:00:04]} 33. Bd5 {[%emt 0:01:57]} Qe5 {[%emt 0:06:15]} 34. g3 {[%emt 0:00:10]} Qf5 {[%emt 0:00:29]} 35. Kg2 {[%emt 0:02:49]} h5 {[%emt 0:00:07]} 36. Bxc6 {[%emt 0:00:07]} bxc6 {[%emt 0:00:03]} 37. h4 {[%emt 0:02:02]} Ree6 {[%emt 0:01:20]} 38. Rd7 {[%emt 0:00:42]} Bd6 {[%emt 0:01:21]} 39. Rd8+ {[%emt 0:00:14]} Kh7 {[%emt 0:00:02]} 40. Bg5 {[%emt 0:00:44]} f6 {[%emt 0:00:33]} 41. Qxh5+ {[%emt 0:00:41]} Rh6 {[%emt 0:00:13]} 42. Qf7 {[%emt 0:00:05]} Qf3+ {[%emt 0:01:15]} 43. Kg1 {[%emt 0:00:05]} Bxg3 {[%emt 0:05:27]} 44. Qg8+ {[%emt 0:00:59]} Kg6 {[%emt 0:00:01]} 45. fxg3 {[%emt 0:00:21]} Qxg3+ {[%emt 0:00:43]} 46. Kf1 {[%emt 0:00:16]} Qf3+ {[%emt 0:01:02]} 47. Kg1 {[%emt 0:00:05]} Qg4+ {[%emt 0:00:39]} 48. Kf2 {[%emt 0:01:29]} fxg5 {[%emt 0:00:02]} 49. Ke3 {[%emt 0:00:21]} Rxh4 {[%emt 0:00:42]} 50. Kd2 {[%emt 0:00:46]} e3+ {[%emt 0:02:41]} 51. Kc1 {[%emt 0:00:33]} e2 {[%emt 0:00:31]} 52. Rd7 {[%emt 0:00:22]} Rh7 {[%emt 0:01:01]} 53. Qf7+ {[%emt 0:00:17]} Kh6 {[%emt 0:00:28]} 54. Rh1+ {[%emt 0:00:06]} 1-0

[Event "Paul Keres Memorial-U20 Girls 2020"]
[Site "Parnu"]
[Date "2020.08.01"]
[Round "8.4"]
[White "Narva, Mai"]
[Black "Norlamo, Sarabella"]
[Result "1-0"]
[ECO "C96"]
[WhiteElo "2333"]
[BlackElo "2023"]
[Annotator "ChessBase"]
[PlyCount "61"]
[EventDate "2020.07.27"]
[EventType "tourn"]
[EventCountry "EST"]
[TimeControl "5400+30"]

1. e4 {[%emt 0:00:00]} e5 {[%emt 0:00:00]} 2. Nf3 {[%emt 0:00:00]} Nc6 {[%emt 0:00:00]} 3. Bb5 {[%emt 0:00:00]} a6 {[%emt 0:00:00]} 4. Ba4 {[%emt 0:00:00]} Nf6 {[%emt 0:00:00]} 5. O-O {[%emt 0:00:00]} b5 {[%emt 0:00:00]} 6. Bb3 {[%emt 0:00:00]} Be7 {[%emt 0:00:00]} 7. Re1 {[%emt 0:00:12]} O-O {[%emt 0:00:00]} 8. h3 {[%emt 0:00:05]} d6 {[%emt 0:00:05]} 9. c3 {[%emt 0:00:04]} Na5 {[%emt 0:00:05]} 10. Bc2 {[%emt 0:00:04]} c5 {[%emt 0:00:09]} 11. d4 {[%emt 0:00:06]} Nd7 {[%emt 0:00:52]} 12. Nbd2 {[%emt 0:00:10]} exd4 {[%emt 0:00:41]} 13. cxd4 {[%emt 0:00:06]} Nc6 {[%emt 0:00:06]} 14. d5 {[%emt 0:00:05]} Nce5 {[%emt 0:00:06]} 15. a4 {[%emt 0:00:06]} Rb8 {[%emt 0:01:48]} 16. Nxe5 {[%emt 0:00:16]} Nxe5 {[%emt 0:00:07]} 17. f4 {[%emt 0:00:08]} Ng6 {[%emt 0:00:05]} 18. Nf3 {[%emt 0:00:09]} Bh4 {[%emt 0:01:11]} 19. Rf1 {[%emt 0:00:16]} Bg3 {[%emt 0:04:23]} 20. f5 {[%emt 0:00:19]} Ne5 {[%emt 0:00:14]} 21. Ng5 {[%emt 0:00:15]} h6 {[%emt 0:23:45]} 22. f6 {[%emt 0:08:44]} hxg5 {[%emt 0:27:11]} 23. Bxg5 {[%emt 0:02:41]} Ng6 {[%emt 0:10:02]} 24. Qh5 {[%emt 0:04:09]} Be5 {[%emt 0:05:27]} 25. fxg7 {[%emt 0:02:43]} Qe8 {[%emt 0:00:04]} 26. Bf6 {[%emt 0:05:13]} Bxf6 {[%emt 0:01:21]} 27. gxf8=Q+ {[%emt 0:00:30]} Qxf8 {[%emt 0:00:10]} 28. Rxf6 {[%emt 0:00:14]} Ne5 {[%emt 0:00:58]} 29. axb5 {[%emt 0:04:52]} Rxb5 {[%emt 0:00:17]} 30. Rh6 {[%emt 0:00:49]} Ng6 {[%emt 0:01:03]} 31. e5 {[%emt 0:00:51]} 1-0